Cogmind - Beta 12 X4 @@@ ROGUE MODE // 2022.12.18 @ 01:06:48 Player: aperiodic Result: Destroyed by Y-54 Guardian with Flak Gun Performance ------------- Evolutions (3) 1500 Regions Visited (7) 1400 Robots Destroyed (189) 945 Value Destroyed (5597) 5597 Prototype IDs (22) 440 Alien Tech Used (0) 0 Bonus (-1526) -1526 TOTAL SCORE: 8356 Bonus ------- High Alert Combat Kills 741 Follower Combat Kills 324 Entered Garrisons 200 Friendly Fire -2791 Cogmind --------- Core Integrity 0/700 Matter 263/300 Energy 286/290 System Corruption 14% Temperature Cool (6) Movement Rolling (145) Ox3 Location -7/Factory Parts ------- > --- POWER (1) -------- Reinforced Deuterium Engine > --- PROPULSION (3) --- Armored Treads Armored Huge Wheel > --- UTILITY (7) ------ Armored Scrap Engine Huge Storage Unit Centrium Light Armor Plating Insulated Plating Hacking Suite > --- WEAPON (2) ------- Flak Gun Flak Ballistic Gauss Construct/G > --- INVENTORY (25) --- Light Ion Engine Light Ion Engine Light Treads Improved Treads Advanced Energy Well (500) High-capacity Matter Pod (200) Seismic Detector Advanced Targeting Computer Improved Utility Shielding Medium Armor Plating Hacking Suite Advanced System Restoration Module Long-range Tractor Beam Advanced Drone Bay (2/2) 01-MTF's Shockpuncher Advanced Beam Rifle Heavy Phase Cannon Flak Gun Mini Grenade Launcher Rocket Array Rocket Array Plasma Cutter Heavy Mace Peak State ------------ > --- POWER ------------ Light Angular Momentum Engine > --- PROPULSION ------- Improved Treads Improved Treads Armored Medium Treads > --- UTILITY ---------- Armored Scrap Engine Experimental Heat Sink Huge Storage Unit Centrium Light Armor Plating Hacking Suite System Shield > --- WEAPON ----------- Advanced Beam Rifle Flak Ballistic Gauss Construct/G > --- INVENTORY -------- Improved Treads Armored Treads Advanced Energy Well High-capacity Matter Pod Seismic Detector Advanced Targeting Computer Improved Utility Shielding Medium Armor Plating Insulated Plating Improved Thermal Shield Hacking Suite Advanced System Restoration Module Long-range Tractor Beam Advanced Drone Bay 01-MTF's Shockpuncher Advanced Beam Rifle Heavy Phase Cannon Mini Grenade Launcher Rocket Array Rocket Array Heavy Mace [Rating: 73] Favorites ----------- Power Heavy Ion Engine Engine Heavy Ion Engine Propulsion Armored Wheel Treads Armored Treads Wheel Armored Wheel Hover Unit Cooled Gravmag System Utility Medium Armor Plating Device Experimental Heat Sink Storage Huge Storage Unit Processor Salvage Targeting Computer Hackware Hacking Suite Protection Medium Armor Plating Weapon Advanced Beam Rifle Energy Gun Advanced Beam Rifle Energy Cannon Light EM Pulse Cannon Ballistic Gun Assault Rifle Ballistic Cannon Light Cannon Launcher Grenade Launcher Special Weapon Mining Laser Impact Weapon Flail Slashing Weapon Katana Build | -11 -10 -10 -9 -9 -8 -8 -7 ------- Run | Scr Mat Min Mat Sto Mat Gar Fac Slots Evolved 6 | . . . 2 . 2 . 2 Power . | . . . . . . . . Propulsion 1 | . . . . . . . 1 Utility 5 | . . . 2 . 2 . 1 Weapon . | . . . . . . . . Parts Attached 182 | 9 25 3 41 46 19 15 24 Power 11 | 1 1 1 2 3 . 1 2 Engine 11 | 1 1 1 2 3 . 1 2 Core . | . . . . . . . . Reactor . | . . . . . . . . Propulsion 27 | 3 7 . 2 5 1 2 7 Treads 10 | . 2 . . . . 2 6 Leg . | . . . . . . . . Wheel 16 | 3 5 . 2 4 1 . 1 Hover 1 | . . . . 1 . . . Flight . | . . . . . . . . Utility 66 | 2 2 1 17 17 9 7 11 Device 23 | 1 1 . 6 3 3 3 6 Storage 4 | 1 1 . 1 1 . . . Processor 1 | . . . . 1 . . . Hackware 4 | . . . . 1 2 . 1 Protection 34 | . . 1 10 11 4 4 4 Artifact . | . . . . . . . . Weapon 78 | 3 15 1 20 21 9 5 4 Energy Gun 29 | 2 1 1 4 9 7 3 2 Energy Cannon 2 | . . . 1 . . 1 . Ballistic Gun 17 | 1 5 . 6 3 . . 2 Ballistic Cannon 1 | . 1 . . . . . . Launcher 8 | . 1 . 3 2 1 1 . Special Weapon 6 | . 4 . 1 1 . . . Impact Weapon 13 | . 3 . 5 5 . . . Slashing Weapon 2 | . . . . 1 1 . . Piercing Weapon . | . . . . . . . . Special Melee Weapon . | . . . . . . . . Unidentified Prototypes 7 | . . . . 6 1 . . Parts Lost 20 | . . . 2 2 2 4 10 Power 3 | . . . . . . 1 2 Propulsion 5 | . . . 1 1 1 . 2 Utility 10 | . . . 1 1 1 3 4 Weapon 2 | . . . . . . . 2 Highest Loss Streak 5 | . . . 1 1 1 2 5 To Critical Strikes 2 | . . . 1 . . . 1 Average Slot Usage (%) 97 | . 100 100 99 99 97 99 81 Engine 10 | . 14 14 11 11 9 9 6 Treads 2 | . 3 . . . . 8 13 Wheel 18 | . 24 28 21 21 15 9 5 Device 10 | . 14 9 7 11 11 9 10 Storage 10 | . 14 14 11 11 9 9 7 Hackware 8 | . . . . 1 22 18 11 Protection 13 | . . 4 25 18 10 17 8 Energy Gun 12 | . 2 4 9 19 17 18 9 Ballistic Gun 3 | . 12 . 8 . . . 4 Ballistic Cannon 2 | . 9 14 . . . . . Impact Weapon 1 | . 2 9 3 . . . . Naked Turns . | . . . . . . . . Heaviest Build 112 | 15 52 55 106 109 108 109 112 Greatest Support 73 | 32 40 24 24 24 24 12 73 Greatest Overweight (x) 9 | 1 2 2 5 8 8 9 8 Average Overweight (x) 3 | . 1 2 3 4 4 8 4 Largest Inventory Capacity 25 | 8 20 20 25 25 25 25 25 Average Capacity 23 | 7 16 20 23 25 25 25 25 Most Carried 25 | 7 14 20 25 25 25 25 25 Average Carried 21 | 3 11 16 22 24 24 23 22 Final Capacity 25 | 8 20 20 25 25 25 25 25 Final Carried 25 | 7 14 20 25 24 25 25 24 Scrap Engine Consumption 14 | . . . . . . . 14 Constructs Created 3 | . . . . . . . 3 Class Distribution -------------------- 42% | Mutant 34% | Hacker-Mutant 17% | Commander-Mutant 5% | Scavenger-Mutant Dominant Class ---------------- Mutant | -10/Materials Mutant | -10/Mines Mutant | -9/Materials Commander-Mutant | -9/Storage Hacker-Mutant | -8/Materials Hacker-Mutant | -8/Garrison Hacker-Mutant | -7/Factory Resources | -11 -10 -10 -9 -9 -8 -8 -7 ----------- Run | Scr Mat Min Mat Sto Mat Gar Fac Matter Collected 3685 | 228 459 374 739 786 232 150 717 Remotely 20 | . . . . . . . 20 Salvage Created 7387 | 110 482 228 1194 1387 1560 1023 1403 Parts 407 | 9 22 6 83 86 73 48 80 Haulers Intercepted 17 | . 1 . 5 6 5 . . Recyclers Shooed 9 | . 5 1 . 3 . . . Parts Field Recycled . | . . . . . . . . Retrieved Matter . | . . . . . . . . Parts Self-Destructed . | . . . . . . . . Prevented . | . . . . . . . . Kills | -11 -10 -10 -9 -9 -8 -8 -7 ------- Run | Scr Mat Min Mat Sto Mat Gar Fac Combat Hostiles Destroyed 137 | . 12 2 32 22 23 23 23 Melee 4 | . 2 1 . 1 . . . Guns 104 | . 6 . 20 15 20 20 23 Cannons 1 | . 1 . . . . . . AOE 22 | . 2 . 11 5 2 2 . Classes Destroyed 17 | 2 6 . 1 2 3 1 2 Worker 11 | . 4 . 2 3 2 . . Builder 1 | . . . . . . . 1 Tunneler 3 | 2 . 1 . . . . . Hauler 17 | . 1 . 5 6 5 . . Recycler 6 | 1 2 2 . . . . 1 Mechanic 2 | . . . . . 1 . 1 Operator 1 | . 1 . . . . . . Watcher 9 | . 1 . 5 1 2 . . Swarmer 31 | . 6 . 18 3 . 4 . Grunt 56 | . 6 2 5 7 15 10 11 Brawler 4 | . . . . . 1 . 3 Duelist 4 | . . . . 1 . . 3 Protector 3 | . . . . 1 . . 2 Sentry 32 | . . . 9 10 6 6 1 Specialist 1 | . . . . . . 1 . Hunter 5 | . . . . . 2 2 1 Programmer 2 | . . . . . . . 2 Best Kill Streak 8 | 3 4 2 8 8 4 4 4 Combat Bots Only 8 | . 3 2 8 7 4 4 4 Max Kills in Single Turn 4 | 1 3 1 4 3 1 2 2 Gunslinging 1 | . 1 . . 1 . 1 . Exploded 4 | . 2 . 4 3 1 2 . Melee 1 | . 1 1 . 1 . . . Uniques/NPCs Destroyed 1 | . . . . 1 . . . 01-MTF (-9/Storage) Combat | -11 -10 -10 -9 -9 -8 -8 -7 -------- Run | Scr Mat Min Mat Sto Mat Gar Fac Damage Taken 6773 | . 545 169 924 995 782 855 2503 Core 1364 | . 52 53 209 163 101 84 702 Absorbed by Shields 367 | . 47 66 . . 128 126 . Regen/Repaired (Parts) 816 | . 39 . 151 419 207 . . Core Remaining (%) 57 | 100 . 58 . 7 . 66 . Volleys Fired 523 | 4 75 2 78 99 91 77 97 Largest 2 | 2 2 2 2 2 2 2 2 Hottest 129 | 100 100 85 112 112 122 122 129 Shots Fired 972 | 8 135 4 142 192 177 153 161 Gun 899 | 8 94 2 124 186 172 152 161 Cannon 42 | . 32 2 8 . . . . Launcher 16 | . 1 . 6 3 5 1 . Special 15 | . 8 . 4 3 . . . Kinetic 354 | . 102 2 90 62 . . 98 Thermal 597 | 8 32 2 42 127 172 152 62 Explosive 16 | . 1 . 6 3 5 1 . Electromagnetic 5 | . . . 4 . . . 1 Robot Hit Streak 18 | 3 9 3 12 18 11 16 12 Robot Miss Streak 6 | 1 6 1 4 3 4 5 4 Penetration Max 1 | . . . . . . . 1 Secondary Targets 12 | . 1 . 2 3 1 2 3 Max Gunslinging Chain 1 | . 1 . 1 1 1 1 1 Shots Hit Robots 676 | 5 86 12 106 146 114 88 119 Core Hits 315 | 4 30 3 56 52 56 37 77 Critical Kills 4 | . 1 . 1 . . . 2 Critical Parts Destroyed 4 | . 2 . . . . . 2 Critical Strikes 50 | . 6 . 6 4 15 11 8 Burn 39 | . 1 . 4 4 15 11 4 Destroy 4 | . . . . . . . 4 Blast 2 | . 2 . . . . . . Corrupt 1 | . . . 1 . . . . Smash 4 | . 3 . 1 . . . . Melee Attacks 67 | . 24 15 10 15 3 . . Impact 62 | . 24 15 10 13 . . . Slashing 5 | . . . . 2 3 . . Piercing . | . . . . . . . . Sneak Attacks 15 | . 4 5 3 3 . . . Combat Hostiles . | . . . . . . . . Follow-up Attacks . | . . . . . . . . Damage Inflicted 16168 | 62 1761 502 2434 2967 2857 2006 3579 Guns 12312 | 62 643 13 1372 2399 2417 1864 3542 Cannons 517 | . 336 36 145 . . . . Explosions 1657 | . 175 . 661 277 402 142 . Melee 1556 | . 594 453 256 226 27 . . Ramming 102 | . 13 . . 41 11 . 37 Kinetic 5123 | . 766 36 938 763 . . 2620 Thermal 7627 | 62 213 13 503 1660 2417 1864 895 Explosive 1657 | . 175 . 661 277 402 142 . Electromagnetic 103 | . . . 76 . . . 27 Impact 1529 | . 594 453 256 226 . . . Slashing 27 | . . . . . 27 . . Piercing . | . . . . . . . . Highest Corruption 17 | . . . . 1 . . 17 Average Corruption 4 | . . . . 1 . . 15 Corruption Purged 5 | . . . . . . . 5 Corruption Blocked . | . . . . . . . . Effects 49 | . . . . 21 . . 28 Message Errors 15 | . . . . 6 . . 9 Matter Fused 16 | . . . . 7 . . 9 Heat Flow Errors 7 | . . . . 3 . . 4 Energy Discharges 4 | . . . . 2 . . 2 Data Loss (minor) 3 | . . . . 2 . . 1 Data Loss (major) 1 | . . . . 1 . . . Alerts 1 | . . . . . . . 1 Misdirections 1 | . . . . . . . 1 Weapon Failures 1 | . . . . . . . 1 Overload Shots . | . . . . . . . . Overflow Damage 576 | . 274 94 185 18 5 . . Projectiles 22 | . 22 . . . . . . Explosions 74 | . . . 74 . . . . Melee 480 | . 252 94 111 18 5 . . Knockbacks 21 | . 13 5 1 1 1 . . Impact 11 | . 4 4 1 1 1 . . Kinetic 9 | . 8 1 . . . . . Secondary 1 | . 1 . . . . . . Self-Inflicted Damage 30 | . 6 . . 19 5 . . Shots . | . . . . . . . . Rammed 15 | . 2 . . 5 1 . 7 Targets Rammed 15 | . 2 . . 5 1 . 7 Kicked . | . . . . . . . . Crushed . | . . . . . . . . Highest Temperature 897 | 78 258 36 188 335 1 22 897 Average Temperature 116 | 34 92 16 44 83 1 6 260 Received Heat Transfer 2311 | . 198 90 291 327 310 273 822 Effects 44 | . . . . 1 . . 43 Shutdowns 8 | . . . . . . . 8 Energy Bleed 3 | . . . . . . . 3 Interference 6 | . . . . . . . 6 Matter Decay 10 | . . . . 1 . . 9 Short Circuit 3 | . . . . . . . 3 Damage (major) 10 | . . . . . . . 10 Damage (core) 4 | . . . . . . . 4 Siege Activations . | . . . . . . . . Robots Corrupted 1 | . . . 1 . . . . Combat Hostiles 1 | . . . 1 . . . . Parts Fried 12 | . 3 3 5 1 . . . Impact Corruptions 23 | . 12 5 5 1 . . . Robots Melted 4 | . . . . 1 2 1 . Combat Hostiles 3 | . . . . 1 1 1 . Parts Melted 41 | . 1 . 4 10 9 15 2 Heat Transferred 17410 | 185 703 37 1369 3758 5550 4107 1701 Parts Sabotaged . | . . . . . . . . Parts Stolen . | . . . . . . . . Parts Stripped . | . . . . . . . . Power Chain Reactions . | . . . . . . . . Missiles Intercepted . | . . . . . . . . Alert | -11 -10 -10 -9 -9 -8 -8 -7 ------- Run | Scr Mat Min Mat Sto Mat Gar Fac Peak Influence 1017 | 15 311 150 643 693 291 1017 798 Initial 533 | . 9 70 . 103 139 59 533 Average 308 | 5 107 41 299 290 145 652 637 Maximum Alert Level 3 | . 1 . 2 2 1 3 3 Low Security (%) 42 | 100 89 100 33 19 74 5 . Level 1 29 | . 10 . 34 68 25 18 . Level 2 19 | . . . 31 12 . 27 79 Level 3 8 | . . . . . . 49 20 Level 4 . | . . . . . . . . Level 5 . | . . . . . . . . High Security . | . . . . . . . . Max Security . | . . . . . . . . Squads Dispatched 22 | . 2 . 2 8 3 . 7 Investigation 8 | . 1 . 2 3 1 . 1 Extermination 2 | . . . . . . . 2 Reinforcement 5 | . 1 . . 1 2 . 1 Assault 4 | . . . . 1 . . 3 Garrison 3 | . . . . 3 . . . Intercept . | . . . . . . . . Searches Triggered . | . . . . . . . . Construction Impeded 2 | . . . . . 1 . 1 Haulers Reinforced . | . . . . . . . . Active Scanning Responses . | . . . . . . . . Cargo Convoy Interrupts . | . . . . . . . . Stealth | -11 -10 -10 -9 -9 -8 -8 -7 --------- Run | Scr Mat Min Mat Sto Mat Gar Fac Distress Signals 11 | . 2 . 3 4 2 . . Communications Jammed . | . . . . . . . . Distress Signals . | . . . . . . . . Times Spotted 216 | . 24 3 39 38 40 27 45 Peak Tracking Total 12 | . 4 2 8 6 8 5 12 Tactical Retreats 10 | . 1 . 1 1 4 1 2 Traps | -11 -10 -10 -9 -9 -8 -8 -7 ------- Run | Scr Mat Min Mat Sto Mat Gar Fac Traps Triggered 7 | . . . . . 1 6 . Indirectly . | . . . . . . . . Trap Hack Attempts . | . . . . . . . . Triggered . | . . . . . . . . Disarmed . | . . . . . . . . Reprogrammed . | . . . . . . . . Reused . | . . . . . . . . Traps Extracted . | . . . . . . . . Installed . | . . . . . . . . Triggered . | . . . . . . . . Machines | -11 -10 -10 -9 -9 -8 -8 -7 ---------- Run | Scr Mat Min Mat Sto Mat Gar Fac Machines Disabled 11 | . 1 . 1 4 3 1 1 Max in Single Turn 1 | . 1 . 1 1 1 1 1 Garrison Access 1 | . . . . 1 . . . Machines Sabotaged . | . . . . . . . . Overloaded Fab Kills . | . . . . . . . . Hacking | -11 -10 -10 -9 -9 -8 -8 -7 --------- Run | Scr Mat Min Mat Sto Mat Gar Fac Machines Accessed 61 | . 9 . 16 15 16 3 2 Terminals 43 | . 7 . 12 10 9 3 2 Fabricators . | . . . . . . . . Repair Stations 7 | . 1 . 2 2 2 . . Recycling Units 7 | . 1 . 2 2 2 . . Scanalyzers 2 | . . . . . 2 . . Garrison Access 2 | . . . . 1 1 . . Total Hacks 181 | . 21 . 49 40 58 8 5 Successful 119 | . 16 . 27 30 42 3 1 Failed 60 | . 4 . 22 10 15 5 4 Catastrophic 5 | . 1 . 2 . 1 . 1 Database Lockouts 2 | . 1 . . . 1 . . Manual 91 | . 16 . 29 15 26 . 5 Terminals 139 | . 18 . 42 29 37 8 5 Fabricators . | . . . . . . . . Repair Stations 20 | . 2 . 5 6 7 . . Recycling Units 10 | . 1 . 2 2 5 . . Scanalyzers 8 | . . . . . 8 . . Garrison Access 4 | . . . . 3 1 . . Terminal Hacks 56 | . 7 . 13 15 17 3 1 Part Schematic 2 | . 1 . . 1 . . . Robot Analysis 8 | . 4 . 1 1 2 . . Prototype ID Bank 10 | . 1 . 3 3 3 . . Open Door 4 | . . . . 3 . 1 . Branch Access Points 3 | . . . 1 . 1 . 1 Emergency Access Points 2 | . . . 1 . . 1 . Machine Index 1 | . . . . . 1 . . Terminal Index 4 | . 1 . 1 1 1 . . Alert Level 4 | . . . 1 1 2 . . Unreport Threat 9 | . . . 3 3 3 . . Locate Traps 1 | . . . . . 1 . . Recall Reinforcements 1 | . . . . . 1 . . Hauler Manifests 3 | . . . 1 1 1 . . Zone Layout 3 | . . . 1 1 1 . . Garrison Registry 1 | . . . . . . 1 . Fabricator Hacks . | . . . . . . . . Repair Station Hacks 18 | . 2 . 4 6 6 . . Scan Component 9 | . 1 . 2 3 3 . . Repair 9 | . 1 . 2 3 3 . . Recycling Unit Hacks . | . . . . . . . . Scanalyzer 8 | . . . . . 8 . . Insert Component 4 | . . . . . 4 . . Analyze 4 | . . . . . 4 . . Garrison Access Hacks 1 | . . . . . 1 . . Unlock Access 1 | . . . . . 1 . . Unauthorized Hacks 36 | . 7 . 10 9 10 . . Terminals 28 | . 6 . 8 7 7 . . Track 3 | . 1 . . 1 1 . . Assimilate 12 | . 2 . 5 3 2 . . Botnet 9 | . 2 . 2 2 3 . . Operators 4 | . 1 . 1 1 1 . . Fabricators . | . . . . . . . . Repair Stations . | . . . . . . . . Recycling Units 8 | . 1 . 2 2 3 . . Reject 1 | . . . . . 1 . . Mask 1 | . . . . . 1 . . Tunnel 6 | . 1 . 2 2 1 . . Scanalyzers . | . . . . . . . . Garrison Access . | . . . . . . . . Data Cores Recovered 1 | . . . . 1 . . . Used . | . . . . . . . . Hacking Detections 44 | . 6 . 14 10 10 2 2 Full Trace Events 3 | . . . . 1 . 1 1 Feedback Events . | . . . . . . . . Feedback Blocked . | . . . . . . . . Robot Schematics Acquired . | . . . . . . . . Robots Built . | . . . . . . . . Authchips . | . . . . . . . . Time . | . . . . . . . . Total Robot Build Rating . | . . . . . . . . Part Schematics Acquired 5 | . 1 . . 1 3 . . Parts Built . | . . . . . . . . Authchips . | . . . . . . . . Time . | . . . . . . . . Total Part Build Rating . | . . . . . . . . Parts Repaired 9 | . 1 . 2 3 3 . . Time 402 | . 26 . 67 172 137 . . Parts Recycled . | . . . . . . . . Recycled Matter . | . . . . . . . . Retrieved Matter . | . . . . . . . . Retrieved Components . | . . . . . . . . Parts Scanalyzed 4 | . . . . . 4 . . Part Schematics Acquired 3 | . . . . . 3 . . Parts Damaged . | . . . . . . . . Bothacking | -11 -10 -10 -9 -9 -8 -8 -7 ------------ Run | Scr Mat Min Mat Sto Mat Gar Fac Used RIF Installer . | . . . . . . . . Robots Hacked . | . . . . . . . . Non-combat . | . . . . . . . . Combat . | . . . . . . . . Robot Hacks Applied . | . . . . . . . . Relay Couplers Released 3 | . . . . 3 . . . Machine Destruction 3 | . . . . 3 . . . Fabnet Peak Effective % . | . . . . . . . . Robots Rewired 4 | . . . . 2 . 2 . Allies Hacked . | . . . . . . . . Hacks Repelled . | . . . . . . . . Allies | -11 -10 -10 -9 -9 -8 -8 -7 -------- Run | Scr Mat Min Mat Sto Mat Gar Fac Total Allies 18 | . 1 . 2 11 2 2 . Largest Group 12 | . 1 1 2 12 7 2 . Highest-Rated Group 184 | . 10 10 20 184 68 70 . Highest-Rated Ally 100 | . 10 10 10 100 16 39 . Total Orders 65 | . 2 4 25 23 9 . 2 STAY 32 | . 1 2 13 11 5 . . FOLLOW 31 | . 1 2 12 12 4 . . EXPLORE 1 | . . . . . . . 1 RETURN 1 | . . . . . . . 1 Ally Attacks 116 | . . . . 75 25 16 . Total Damage 1209 | . . . . 730 257 222 . Kills 20 | . . . . 12 2 6 . Allies Corrupted . | . . . . . . . . Allies Melted . | . . . . . . . . Intel | -11 -10 -10 -9 -9 -8 -8 -7 ------- Run | Scr Mat Min Mat Sto Mat Gar Fac Robot Analysis Total 8 | . 4 . 1 1 2 . . Derelict Logs Recovered 1 | . . 1 . . . . . Drone Launches 1 | . . . . . . . 1 Drone Recoveries 1 | . . . . . . . 1 Exploration | -11 -10 -10 -9 -9 -8 -8 -7 ------------- Run | Scr Mat Min Mat Sto Mat Gar Fac Turns Passed 14042 | 72 1587 1040 2559 2993 2504 1990 1297 Spaces Moved 6935 | 44 796 817 1454 1549 1216 663 396 Core 6 | 6 . . . . . . . Treads 134 | . 57 . . . . . 77 Legs . | . . . . . . . . Wheels 6795 | 38 739 817 1454 1549 1216 663 319 Hover . | . . . . . . . . Flight . | . . . . . . . . Fastest Speed 50 | 50 90 120 120 135 150 210 145 Average Speed 149 | 90 117 120 137 150 160 210 191 Slowest Speed 243 | 100 160 120 165 210 210 225 243 Overloaded Moves . | . . . . . . . . Propulsion Burnouts . | . . . . . . . . Robots Hopped . | . . . . . . . . Cave-ins Triggered . | . . . . . . . . Exploration Rate (%) 67 | 3 98 99 94 95 85 58 8 Regions Visited 7 Branch Regions 2 Pre-discovered Areas 6 | . 1 . 2 2 1 . . Known Exits Taken 2 | . . . 1 . 1 . . Unknown Exits Taken 4 | 1 1 1 . 1 . . . Scrap Searched 3 | . . 3 . . . . . Spaces Dug 19 | . 4 1 8 5 1 . . Terrain Destroyed 138 | . 12 1 55 29 8 2 31 Melee 10 | . . 1 5 3 1 . . Projectile 43 | . 6 . 4 2 . . 31 AOE 85 | . 6 . 46 24 7 2 . Terrain Rammed . | . . . . . . . . Walls Destroyed . | . . . . . . . . Machines Disabled . | . . . . . . . . Actions | -11 -10 -10 -9 -9 -8 -8 -7 --------- Run | Scr Mat Min Mat Sto Mat Gar Fac Total 9488 | 64 1264 848 1843 1998 1595 1113 763 Wait 1491 | . 320 7 223 227 228 274 212 Move 6927 | 43 795 816 1453 1548 1216 660 396 Hop . | . . . . . . . . Pick Up 102 | 7 13 5 21 17 19 12 8 Fast Attach 32 | 7 . . 1 10 6 . 8 Attach 33 | 1 . . 5 4 3 6 14 Detach 10 | 1 . . . 1 . . 8 Swap 117 | 1 25 3 35 32 10 9 2 Drop 93 | . 10 . 17 30 18 8 10 Fire 523 | 4 75 2 78 99 91 77 97 Melee 67 | . 24 15 10 15 3 . . Ram 9 | . 2 . . 5 1 . 1 Kick . | . . . . . . . . Crush 7 | . . . . . . . 7 Escape Stasis 33 | . . . . . . 33 . Rewire 44 | . . . . 10 . 34 . Trap . | . . . . . . . . Miscellaneous . | . . . . . . . . Route ------- -11/Scrapyard -10/Materials (discovered 5 exits: *Mat x3 / [*Min x2]) -10/Mines (discovered 3 exits: *Mat x2 / [*Exi]) -9/Materials (discovered 5 exits: *Mat x3 / *Min / *Sto) -9/Storage -8/Materials (discovered 3 exits: *Fac x2 / Gar) -8/Garrison (discovered 4 exits: *Fac x3 / [Mat]) -7/Factory (discovered 2 exits: Low x2) History --------- Turn | Location | Event 10 | -11/Scrapyard | Discovered new exit (range 16) 73 | -11/Scrapyard | Entered Materials 268 | -10/Materials | Discovered new exit (range 10) 320 | -10/Materials | Build established: Mutant 457 | -10/Materials | Discovered new exit (range 9) 814 | -10/Materials | Repaired Lgt. Armor Plating 844 | -10/Materials | Discovered new exit (range 8) 978 | -10/Materials | Discovered new exit (range 16) 1611 | -10/Materials | Central database locked down 1635 | -10/Materials | Discovered new exit (range 16) 1660 | -10/Materials | Entered Mines 1660 | -10/Mines | Accompanied by 1 ally 1661 | -10/Mines | Met a Derelict bent on vengeance 1900 | -10/Mines | Learned Materials security intel 1941 | -10/Mines | Discovered new exit (range 9) 1965 | -10/Mines | Discovered new exit (range 6) 2164 | -10/Mines | Deemed a non-threat by the Exiles lab entrance 2164 | -10/Mines | Discovered new exit (range 5) 2384 | -10/Mines | Joined a pair of Derelicts in attacking an 0b10 outpost 2700 | -10/Mines | Entered Materials 2700 | -9/Materials | Accompanied by 1 ally 2700 | -9/Materials | Evolved 2 slots: Utility x2 3001 | -9/Materials | Destroyed 8 combat bots 3214 | -9/Materials | Discovered new exit (range 15) 3441 | -9/Materials | Discovered new exit (range 3) 3576 | -9/Materials | Identified exit to Mines 3576 | -9/Materials | Identified exit to Storage 3712 | -9/Materials | Discovered new exit (range 3) 4218 | -9/Materials | Repaired Hvy. Ion Engine? 4219 | -9/Materials | Repaired Arm. Wheel 4350 | -9/Materials | Discovered new exit (range 13) 4468 | -9/Materials | Build established: Scavenger-Mutant 5063 | -9/Materials | Core integrity fell below 50% 5258 | -9/Materials | Build established: Mutant 5259 | -9/Materials | Entered Storage 5259 | -9/Storage | Accompanied by 2 allies 5594 | -9/Storage | Core integrity fell below 20% 5617 | -9/Storage | Destroyed 7 combat bots 6115 | -9/Storage | Assisted by bots powering up and referring to "LRC-V3" 6266 | -9/Storage | Discovered new exit (range 14) 6400 | -9/Storage | Build established: Commander-Mutant 6409 | -9/Storage | Repaired Arm. Wheel 7222 | -9/Storage | Met 01-MTF 7482 | -9/Storage | Destroyed 01-MTF 7487 | -9/Storage | Found Prototype Device 7487 | -9/Storage | Identified 01-MTF's Autohacker 7528 | -9/Storage | Found 01-MTF's Shockpuncher 7839 | -9/Storage | Repaired Centrium Light Armor Plating 7872 | -9/Storage | Repaired Arm. Wheel 8252 | -9/Storage | Entered Materials 8252 | -8/Materials | Accompanied by 7 allies 8252 | -8/Materials | Evolved 2 slots: Utility x2 8831 | -8/Materials | Central database locked down 8852 | -8/Materials | Build established: Hacker-Mutant 8963 | -8/Materials | Found Rocket Array 8965 | -8/Materials | Found Rocket Array 9230 | -8/Materials | Discovered new exit (range 4) 10066 | -8/Materials | Discovered new exit (range 13) 10105 | -8/Materials | Repaired Arm. Wheel 10460 | -8/Materials | Repaired Exp. Heat Sink 10494 | -8/Materials | Repaired Med. Armor Plating 10756 | -8/Materials | Identified exit to Garrison 10756 | -8/Materials | Entered Garrison 10793 | -8/Garrison | Discovered new exit (range 66) 10793 | -8/Garrison | Discovered new exit (range 87) 10793 | -8/Garrison | Discovered new exit (range 56) 10793 | -8/Garrison | Discovered new exit (range 35) 10938 | -8/Garrison | Triggered checkpoint 11494 | -8/Garrison | Triggered checkpoint 11622 | -8/Garrison | Triggered checkpoint 12264 | -8/Garrison | Attempted to access garrison exit controls, blocked by remote lockdown 12485 | -8/Garrison | Attempted to access garrison exit controls, blocked by remote lockdown 12746 | -8/Garrison | Entered Factory 12746 | -7/Factory | Evolved 2 slots: Propulsion x1, Utility x1 12752 | -7/Factory | Found Scrap Engine 13146 | -7/Factory | First assault squad dispatched 13433 | -7/Factory | System corruption reached 10% 13468 | -7/Factory | Lost 4 parts (1p1n2u) 13555 | -7/Factory | Core integrity fell below 50% 13564 | -7/Factory | Core integrity fell below 20% 13608 | -7/Factory | Lost 5 parts (1n2u2w) 13724 | -7/Factory | Build established: Mutant 13854 | -7/Factory | Identified exit to Lower Caves 14043 | -7/Factory | Destroyed by Y-54 Guardian with Flak Gun Last Messages --------------- 13854_ ALERT: Suspicious activity at Terminal F018. Dispatching Investigation squad. 13869_ P-60 Hacker destroyed. 13873_ Acquired 29 matter. 13875_ System corrupted: Matter fused (-10). 13891_ KBVGJJ75WUD8EB6JOG0,RHJK3T NZU 13910_ System corrupted: Heat flow error (+138). 13933_ System corrupted: Matter fused (-8). 13948_ System corrupted: Component data lost. 13953_ Penetrated by Slug. 13955_ H-55 Commando destroyed. 13962_ Arm. Scrap Engine consumes Gauss Rifle. 13964_ Acquired 33 matter. 13967_ System corrupted: Energy discharge (-66). 13989_ System corrupted: Matter fused (-9). 13993_ Arm. Scrap Engine constructs Flak Ballistic Gauss Construct/G. 14009_ LRS,4Z3JS1=MZ8>F1=JL4LJB97CG 14026_ System corrupted: Matter fused (-7). 14037_ Acquired Plasma Cutter. 14043_ System corrupted: Matter fused (-8). Map ----- +----------------------------------------------------+ | ?????????????????????????????????????????????????? | | ?????????????????????????????????????????????????? | | ?????????????????????????????????????????????????? | | ?????????????????????????????????????????????????? | | ?????????????????????????????????????????????????? | | ?????????????????????????????????????????????????? | | #????????????????????????????????????????????????? | | #????????????????????????????????????????????????? | | #????????????????????????????????????????????????? | | ####?????????????????????????????????????????????? | | #?????????????????????????????????????????????? | | ## #?????????????????????????????????????????????? | | ?# #???????########??????????????????????????????? | | ?# #???????# ! =#??????????????????????????????? | | ?# #???????# #??????????????????????????????? | | ?# #??###### """ #??????????????????????????????? | | ## #### + """ #?########??#??????????????????? | | ## #### """ #?# #??????????????????? | | | ## #??# #?# """ """ #??????????????????? | | #??####+###?# """ """ #??????????????????? | | ## #?????# #???# """ """ #??????????????????? | | ## #?????# ##### "" "" #??????????????????? | | ####### ?????# + "" "" #??????????????????? | | ??????####????# # #??????????????????? | | ??????????????# # ] ] #??????????????????? | | #?????????????# #####@#####??????????????????? | | #?????????????# #?? ?????????????????????? | | #???????????? #?# ???????????????????? | | #??????????? Y ?????????????????? | | #?????????? ###### ???????????????? | | #?????????########????# ##### ?????????????? | | #?????????????????????#######?????###????????????? | | #????????????????????????????????????????????????? | | | | | | | | | | | | | | | | | | | | | | | | | | | | | | | | | | | +----------------------------------------------------+ Best States ------------- Heat Dissipation 60 Energy Generation 18 Energy Capacity 780 Matter Stores 300 Matter Capacity 300 Sight Range 16 Terrain Scan Density 10 Armor Coverage 525 Resistance: TH 25 Resistance: EM 15 Evasion (%) 42 Recoil Reduction 3 Salvage Targeting 1 Offensive Hacking 20 Defensive Hacking 10 Item Schematics ----------------- Huge Storage Unit | -10/Materials | Hacked Hrd. Medium Armor Plating | -9/Storage | Hacked Cld. Gravmag System | -8/Materials | Scanalyzed Centrium Light Armor Plating | -8/Materials | Scanalyzed Imp. Utility Shielding | -8/Materials | Scanalyzed Robot Schematics ------------------ None Fabricated ------------ Nothing Alien Tech Used ----------------- None Achievements -------------- None Challenges ------------ None Game ------ Seed AntigravChargeBattery Manual? 0 Play Time 02:23:11 Cumulative 618.2 hours Start 2022.12.17 @ 22:24:25 End 2022.12.18 @ 01:06:48 Sessions 1 Manual Loads 0 Difficulty Rogue Special Mode None Game No. 200 Rogue 196 Adventurer 4 Explorer 0 Win Type - Total 17 Types 7/2/6/0/0/0/1/1/0 Lore% 86 Gallery% 89 Achievement% 77 Wizard Run 0 Options --------- ASCII 1 Keyboard 0 Movement Arrows Keybinds 0 Fullscreen 1 Font 18/SmallcapsGlow Map View 76x50 Tactical HUD 1 Map Filters NONE Filters NONE Steam 1 RUN: bcb934d9-f89f-45e3-99e8-223e35e2b92a